Cogmind - Beta 16 @@@ ROGUE MODE // 2026.02.03 @ 23:48:44 Player: AngelSpirit Result: Destroyed by Z-Imprinter with Zionite Laser-M Performance ------------- Evolutions (3) 1500 Regions Visited (9) 1800 Robots Destroyed (167) 835 Value Destroyed (4960) 4960 Prototype IDs (24) 480 Alien Tech Used (0) 0 Bonus (181) 181 TOTAL SCORE: 9756 Bonus ------- High Alert Combat Kills 588 Follower Combat Kills 39 Friendly Fire -446 Cogmind --------- Core Integrity 0/700 Matter 142/300 Energy 100/100 System Corruption 0% Temperature Warm (186) Movement Core (550) Ox10 Location -7/Deep Caves Parts ------- > --- POWER (1) -------- (None) > --- PROPULSION (5) --- (None) > --- UTILITY (5) ------ Large Storage Unit Improved Signal Interpreter Hardened Light Armor Plating > --- WEAPON (2) ------- Mini Assault Cannon Mini Assault Cannon > --- INVENTORY (15) --- Makeshift Power Source Cooled VTOL Module Cooled VTOL Module Cooled VTOL Module Cooled VTOL Module Cooled VTOL Module Hacking Drone Bay (1/1) Rainbow Chip Improved EM Shotgun Improved EM Shotgun Heavy Missile Launcher Rocket Array Ripper CR-A16's Pointy Stick Peak State ------------ > --- POWER ------------ Heavy Deuterium Engine > --- PROPULSION ------- Gravmag System Improved Airjet Improved Airjet Combat Airjet Combat Airjet > --- UTILITY ---------- Large Storage Unit Improved Sensor Array Improved Signal Interpreter Hacking Suite Hacking Drone Bay > --- WEAPON ----------- Gatling Laser Power Maul > --- INVENTORY -------- Light Nuclear Core Cooled VTOL Module Cooled VTOL Module Cooled VTOL Module Cooled VTOL Module Cooled VTOL Module Hardened Light Armor Plating Hardened Light Armor Plating Rainbow Chip Mini Assault Cannon Mini Assault Cannon Heavy Missile Launcher Rocket Array Multitool [Rating: 62] Favorites ----------- Power Ion Engine Engine Ion Engine Power Core Light Nuclear Core Propulsion Improved Airjet Leg Improved Aluminum Leg Wheel Compact Wheel Hover Unit Improved Airjet Flight Unit Improved Flight Unit Utility Large Storage Unit Device Improved Sensor Array Storage Large Storage Unit Processor Improved Signal Interpreter Hackware Hacking Suite Protection Hardened Light Armor Plating Weapon EM Pulse Gun Energy Gun EM Pulse Gun Energy Cannon Subdweller Beam Cannon Ballistic Gun Heavy Assault Rifle Ballistic Cannon Mini Assault Cannon Launcher Grenade Launcher Special Weapon Multitool Impact Weapon Power Maul Slashing Weapon Ripper Build | -11 -10 -10 -10 -8 -7 -7 -7 -7 -7 ------- Run | Yrd Mat Min Sub Mat Fac Low Low Zio Dee Slots Evolved 6 | . . . . 4 2 . . . . Power . | . . . . . . . . . . Propulsion 3 | . . . . 1 2 . . . . Utility 3 | . . . . 3 . . . . . Weapon . | . . . . . . . . . . Parts Attached 124 | 7 12 1 14 29 52 1 . 4 4 Power 12 | 1 1 . 2 2 6 . . . . Engine 10 | 1 1 . 2 1 5 . . . . Core 2 | . . . . 1 1 . . . . Reactor . | . . . . . . . . . . Propulsion 39 | 2 2 1 4 10 20 . . . . Treads . | . . . . . . . . . . Leg 2 | . . . . 2 . . . . . Wheel 14 | 2 2 1 4 5 . . . . . Hover 20 | . . . . 3 17 . . . . Flight 3 | . . . . . 3 . . . . Utility 32 | 2 3 . 3 9 11 . . 3 1 Device 12 | 1 . . . 4 5 . . 2 . Storage 6 | 1 2 . 1 . 1 . . 1 . Processor 3 | . 1 . . 1 1 . . . . Hackware 1 | . . . . 1 . . . . . Protection 10 | . . . 2 3 4 . . . 1 Artifact . | . . . . . . . . . . Weapon 41 | 2 6 . 5 8 15 1 . 1 3 Energy Gun 14 | 1 4 . 1 1 6 . . 1 . Energy Cannon 4 | . . . 1 1 2 . . . . Ballistic Gun 7 | 1 1 . . 4 1 . . . . Ballistic Cannon 2 | . . . . . 1 . . . 1 Launcher 8 | . 1 . 1 1 3 1 . . 1 Special Weapon 1 | . . . . 1 . . . . . Impact Weapon 3 | . . . 1 . 2 . . . . Slashing Weapon 2 | . . . 1 . . . . . 1 Piercing Weapon . | . . . . . . . . . . Special Melee Weapon . | . . . . . . . . . . Unidentified Prototypes 11 | . . . . . 10 . . 1 . Corrupted Parts 2 | . . . . . 2 . . . . System Corruption 12 | . . . . . 12 . . . . Parts Lost 40 | . 3 . 5 13 8 1 . . 10 Power 4 | . . . . 1 1 1 . . 1 Propulsion 19 | . 1 . 2 7 4 . . . 5 Utility 9 | . . . 1 2 3 . . . 3 Weapon 8 | . 2 . 2 3 . . . . 1 Highest Loss Streak 10 | . 1 . 4 8 3 1 . . 10 To Critical Strikes . | . . . . . . . . . . Average Backups 11 | . 8 14 5 11 14 14 15 14 14 Power . | . . 1 . 1 . . 1 1 1 Propulsion 2 | . . 1 . 2 5 5 5 5 5 Utility 4 | . 5 10 1 4 3 2 2 2 2 Weapon 3 | . 2 2 2 1 3 6 6 4 5 Tool/Special . | . . . . . . . . . . Unused Backups 24 | . 1 . 9 1 5 . . 1 7 Power 2 | . . . . . . . . 1 1 Propulsion 6 | . . . . 1 1 . . . 4 Utility 8 | . . . 6 . 1 . . . 1 Weapon 7 | . 1 . 3 . 2 . . . 1 Tool/Special 1 | . . . . . 1 . . . . Average Slot Usage (%) 94 | . 100 100 84 86 98 100 100 100 88 Engine 9 | . 14 14 14 7 5 2 7 7 6 Wheel 13 | . 28 28 27 18 . . . . . Hover 17 | . . . . . 37 38 38 38 31 Device 8 | . 13 14 . 11 7 7 7 7 5 Storage 7 | . 14 14 1 9 7 7 7 7 7 Processor 4 | . . . . 8 7 7 7 7 7 Hackware 3 | . . . . 3 7 7 7 7 5 Protection 6 | . . . 12 8 5 7 7 7 7 Energy Gun 9 | . 15 28 2 2 8 6 7 11 9 Energy Cannon 3 | . . . 12 4 1 . . . . Ballistic Gun 2 | . 11 . . 5 1 . . . . Impact Weapon 1 | . . . . . 2 7 7 3 . Slashing Weapon 2 | . . . 11 3 . . . . . Peak Build Rating 62 | 7 9 9 17 30 60 55 55 62 55 Average Rating 32 | 5 7 8 14 24 52 53 55 54 49 On Entrance 28 | . 7 9 9 14 25 53 55 55 54 Avg Prop Armor Cover (%) 1 | . . . 1 6 . . . . . Naked Turns . | . . . . . . . . . . Heaviest Build 96 | 15 30 30 96 46 45 47 43 44 44 Greatest Support 52 | 26 32 32 40 40 52 52 52 52 52 Greatest Overweight (x) 4 | . . 1 4 2 1 . . . 1 Average Overweight (x) . | . . . . . . . . . . Largest Inventory Capacity 25 | 8 15 15 25 15 15 15 15 15 15 Average Capacity 13 | 7 12 15 6 15 15 15 15 15 15 Most Carried 15 | 1 14 15 15 15 15 15 15 15 15 Average Carried 11 | . 8 14 5 12 14 14 15 14 14 Final Capacity 15 | 8 15 15 15 15 15 15 15 15 15 Final Carried 15 | 1 14 15 10 11 15 15 15 15 14 Class Distribution -------------------- 71% | Mutant 15% | Scavenger-Mutant 13% | Subdweller-Mutant Dominant Class ---------------- Mutant | -10/Materials Mutant | -10/Mines Subdweller-Mutant | -10/Subcaves Scavenger-Mutant | -8/Materials Mutant | -7/Factory Mutant | -7/Lower Caves Mutant | -7/Lower Caves Mutant | -7/Zion Mutant | -7/Deep Caves Resources | -11 -10 -10 -10 -8 -7 -7 -7 -7 -7 ----------- Run | Yrd Mat Min Sub Mat Fac Low Low Zio Dee Matter Collected 2961 | 282 337 10 205 709 1148 147 25 98 . Remotely . | . . . . . . . . . . Salvage Created 5097 | 26 840 200 355 1320 2200 63 51 . 42 Parts 285 | 4 62 8 27 66 110 7 1 . . Haulers Intercepted 9 | . 2 . . 1 6 . . . . Recyclers Shooed 3 | . . . . 1 2 . . . . Parts Field Recycled . | . . . . . . . . . . Retrieved Matter . | . . . . . . . . . . Parts Self-Destructed 6 | . . . . . . 6 . . . Prevented 1 | . . . . . . . 1 . . Parts Restored . | . . . . . . . . . . Kills | -11 -10 -10 -10 -8 -7 -7 -7 -7 -7 ------- Run | Yrd Mat Min Sub Mat Fac Low Low Zio Dee Combat Hostiles Destroyed 108 | . 19 2 9 30 37 7 1 . 3 Melee 10 | . . . . 7 2 . 1 . . Guns 46 | . 9 2 . 11 22 1 . . 1 Cannons 8 | . . . 4 2 2 . . . . AOE 37 | . 10 . 3 10 6 6 . . 2 Classes Destroyed 22 | 1 7 1 2 6 2 . 1 . 2 Worker 18 | . . 1 . 1 16 . . . . Builder 4 | . 2 . . 1 1 . . . . Tunneler 5 | 1 . . . 3 1 . . . . Hauler 9 | . 2 . . 1 6 . . . . Recycler 3 | . 1 1 . . 1 . . . . Minesweeper 1 | . . . . . . . 1 . . Mechanic 2 | . . . . 1 1 . . . . Operator 5 | . 3 . . . 2 . . . . Watcher 12 | . 3 . . 3 6 . . . . Swarmer 24 | . 6 . . 3 8 7 . . . Cutter 2 | . . . . . 2 . . . . Grunt 49 | . 13 2 . 18 15 . 1 . . Brawler 2 | . . . . 1 1 . . . . Duelist 4 | . . . . 3 1 . . . . Protector 1 | . . . . 1 . . . . . Sentry 8 | . . . . 3 5 . . . . Hunter 1 | . . . . 1 . . . . . Programmer 5 | . . . . . 5 . . . . Artisan 1 | . . . 1 . . . . . . Subdweller 9 | . . . 9 . . . . . . Z-Light 2 | . . . . . . . . . 2 Assembled 1 | . . . . . . . . . 1 Thug 1 | . . . . . 1 . . . . Best Kill Streak 11 | 1 6 2 3 11 10 4 2 . 2 Combat Bots Only 6 | . 4 2 3 6 5 4 1 . 2 Max Kills in Single Turn 11 | 1 5 1 1 4 11 1 1 . 2 Gunslinging . | . . . . . . . . . . Exploded 3 | . 3 . 1 3 2 1 . . 2 Melee 1 | . . . . 1 1 . 1 . . Uniques/NPCs Destroyed . | . . . . . . . . . . Combat | -11 -10 -10 -10 -8 -7 -7 -7 -7 -7 -------- Run | Yrd Mat Min Sub Mat Fac Low Low Zio Dee Hostile Shots Fired 600 | . 43 8 25 151 292 22 2 . 57 Missed 192 | . 6 . 11 35 121 7 1 . 11 Hits 408 | . 37 8 14 116 171 15 1 . 46 Melee 20 | . . . . 20 . . . . . Projectile 388 | . 37 8 14 96 171 15 1 . 46 AOE 2 | . . . . . 2 . . . . Critical Strikes 11 | . . 1 1 8 1 . . . . Part Disruptions 1 | . . . . . 1 . . . . Damage Taken 6971 | . 495 116 368 1915 2366 240 15 . 1456 Core 1437 | . 104 65 31 506 403 . . . 328 Absorbed by Shields 173 | . . . . 173 . . . . . Regen/Repaired (Parts) 53 | . . . . . 53 . . . . Core Remaining (%) 42 | 100 . . 20 8 . . . . . Volleys Fired 319 | 4 48 8 28 97 112 9 . . 13 Largest 2 | 2 2 2 2 2 2 1 . . 2 Hottest 160 | 60 80 80 80 98 160 45 . . 90 Shots Fired 524 | 5 91 16 33 145 198 10 2 . 24 Gun 405 | 5 82 16 9 104 175 4 2 . 8 Cannon 76 | . . . 15 29 19 . . . 13 Launcher 41 | . 9 . 9 12 4 6 . . 1 Special 2 | . . . . . . . . . 2 Kinetic 144 | 4 24 . . 78 25 . . . 13 Thermal 219 | . . . 15 55 147 . . . 2 Explosive 41 | . 9 . 9 12 4 6 . . 1 Electromagnetic 120 | 1 58 16 9 . 22 4 2 . 8 Robot Hit Streak 15 | 2 10 8 10 9 15 6 1 . 4 Robot Miss Streak 8 | 1 4 1 1 4 8 3 1 . 6 Penetration Max . | . . . . . . . . . . Secondary Targets 6 | . 2 . . 1 3 . . . . Max Gunslinging Chain 1 | . 1 . . 1 1 . . . . Shots Hit Robots 404 | 3 52 12 25 111 184 4 3 . 10 Core Hits 278 | 1 40 6 11 70 124 10 1 . 15 Critical Kills 2 | . . . 2 . . . . . . Critical Parts Destroyed 4 | . . . . . 3 . 1 . . Critical Strikes 15 | . 1 1 2 3 7 . 1 . . Burn 1 | . . . . 1 . . . . . Meltdown 2 | . . . 2 . . . . . . Corrupt 2 | . 1 1 . . . . . . . Smash 4 | . . . . . 3 . 1 . . Sever 6 | . . . . 2 4 . . . . Melee Attacks 95 | . . . 8 31 53 . 3 . . Impact 44 | . . . 2 . 39 . 3 . . Slashing 51 | . . . 6 31 14 . . . . Piercing . | . . . . . . . . . . Sneak Attacks 15 | . . . 1 3 10 . 1 . . Combat Hostiles 2 | . . . . 1 1 . . . . Follow-up Attacks 3 | . . . . . 3 . . . . Damage Inflicted 14804 | 33 1457 158 887 3948 6879 621 114 . 707 Guns 4971 | 33 743 158 52 1008 2912 27 . . 38 Cannons 1231 | . . . 327 376 366 . . . 162 Explosions 5478 | . 714 . 410 1689 1569 594 . . 502 Melee 3119 | . . . 98 875 2032 . 114 . . Ramming . | . . . . . . . . . . Kinetic 1520 | 33 214 . . 799 312 . . . 162 Thermal 4695 | . . . 327 585 3778 . . . 5 Explosive 4297 | . 714 . 410 1689 388 594 . . 502 Electromagnetic 1173 | . 529 158 52 . 369 27 . . 38 Impact 1625 | . . . . . 1511 . 114 . . Slashing 1494 | . . . 98 875 521 . . . . Piercing . | . . . . . . . . . . Highest Corruption 14 | . . . . . 14 14 14 14 . Average Corruption 10 | . . . . . 8 14 14 14 . Corruption Purged 5 | . . . . . 5 . . . . Corruption Blocked . | . . . . . . . . . . Effects 89 | . . . . . 54 17 17 1 . Message Errors 17 | . . . . . 10 2 5 . . Matter Fused 18 | . . . . . 10 4 3 1 . Heat Flow Errors 11 | . . . . . 7 2 2 . . Energy Discharges 14 | . . . . . 7 5 2 . . Data Loss (minor) 10 | . . . . . 6 3 1 . . Data Loss (major) 6 | . . . . . 4 . 2 . . Misfires 5 | . . . . . 2 1 2 . . Alerts 3 | . . . . . 3 . . . . Misdirections 2 | . . . . . 2 . . . . Weapon Failures 3 | . . . . . 3 . . . . Overload Shots . | . . . . . . . . . . Overflow Damage 1104 | . 50 . . 73 861 32 82 . 6 Projectiles 17 | . . . . . 11 . . . 6 Explosions 413 | . 50 . . 44 287 32 . . . Melee 674 | . . . . 29 563 . 82 . . Knockbacks 13 | . . . . . 10 . . . 3 Impact 9 | . . . . . 9 . . . . Kinetic 4 | . . . . . 1 . . . 3 Secondary . | . . . . . . . . . . Self-Inflicted Damage 679 | . 83 . 17 121 411 9 . . 38 Shots 16 | . 3 . 1 4 5 1 . . 2 Rammed . | . . . . . . . . . . Targets Rammed . | . . . . . . . . . . Kicked . | . . . . . . . . . . Crushed . | . . . . . . . . . . Highest Temperature 353 | . 178 171 265 336 353 150 232 . 245 Average Temperature 94 | . 51 68 110 132 91 59 86 . 117 Received Heat Transfer 2120 | . 207 81 369 599 468 . 9 . 387 Effects 10 | . . . . 4 4 . . . 2 Shutdowns 1 | . . . . 1 . . . . . Energy Bleed 2 | . . . . 1 1 . . . . Interference 7 | . . . . 2 3 . . . 2 Siege Activations . | . . . . . . . . . . Martial Activations . | . . . . . . . . . . Shielding Activations . | . . . . . . . . . . Robots Disrupted . | . . . . . . . . . . Combat Hostiles . | . . . . . . . . . . Robots Corrupted 8 | . . . . . 8 . . . . Combat Hostiles 3 | . . . . . 3 . . . . Parts Fried 18 | . 1 . . . 16 . 1 . . Impact Corruptions 21 | . . . . . 20 . 1 . . Robots Melted 4 | . . . 2 . 2 . . . . Combat Hostiles 4 | . . . 2 . 2 . . . . Parts Melted 18 | . . . 5 . 13 . . . . Heat Transferred 8166 | . . . 444 1147 6550 . . . 25 Parts Sabotaged . | . . . . . . . . . . Parts Stolen . | . . . . . . . . . . Parts Stripped . | . . . . . . . . . . Power Chain Reactions . | . . . . . . . . . . Alert | -11 -10 -10 -10 -8 -7 -7 -7 -7 -7 ------- Run | Yrd Mat Min Sub Mat Fac Low Low Zio Dee Maximum Alert Level 4 | . 1 . . 2 4 . . . . Low Security (%) 32 | 100 31 100 . 29 7 . . . . Level 1 31 | . 68 . . 43 21 . . . . Level 2 21 | . . . . 26 37 . . . . Level 3 10 | . . . . . 23 . . . . Level 4 4 | . . . . . 10 . . . . Level 5 . | . . . . . . . . . . High Security . | . . . . . . . . . . Max Security . | . . . . . . . . . . Peak Influence 1111 | 5 284 93 . 637 1111 . . . . Initial 289 | . . 93 . . 289 . . . . Average 359 | 1 205 19 . 265 608 . . . . Influence Increases 3787 | 5 678 100 . 1141 1678 160 25 . . Destroy 0b10 Robot/C 1920 | . 380 60 . 580 740 140 20 . . Destroy 0b10 Robot/NC 300 | 5 55 10 . 55 170 . 5 . . Destroy Leader 462 | . 90 20 . 138 194 20 . . . Allied During Kill 10 | . . 10 . . . . . . . Successful Hack 133 | . 32 . . 12 89 . . . . Select Force Hacks 60 | . 30 . . . 30 . . . . Disable Machine 330 | . 45 . . 60 225 . . . . Destroy Structure 182 | . 46 . . 71 65 . . . . Partial Spotted 30 | . . . . . 30 . . . . Lose Combat Pursuer 360 | . . . . 225 135 . . . . Influence Decreases 3787 | 5 438 340 . 504 1208 627 320 345 . Entered New Map 1373 | . . 147 . . 348 411 122 345 . Time Decay 1994 | 5 408 173 . 374 630 206 198 . . Lost Part 250 | . 30 . . 130 80 10 . . . Lost Ally 20 | . . 20 . . . . . . . Purge Threat 150 | . . . . . 150 . . . . Squads Dispatched 28 | . 6 . . 8 14 . . . . Investigation 7 | . 3 . . 1 3 . . . . Extermination 5 | . . . . . 5 . . . . Reinforcement 8 | . 3 . . 2 3 . . . . Assault 2 | . . . . 1 1 . . . . Garrison 6 | . . . . 4 2 . . . . Intercept . | . . . . . . . . . . Searches Triggered . | . . . . . . . . . . Construction Impeded 1 | . . . . 1 . . . . . Haulers Reinforced 1 | . . . . . 1 . . . . Active Scanning Responses . | . . . . . . . . . . Cargo Convoy Interrupts . | . . . . . . . . . . Stealth | -11 -10 -10 -10 -8 -7 -7 -7 -7 -7 --------- Run | Yrd Mat Min Sub Mat Fac Low Low Zio Dee Distress Signals 6 | . 1 . . 4 1 . . . . Communications Jammed . | . . . . . . . . . . Distress Signals . | . . . . . . . . . . Times Spotted 162 | . 26 4 9 49 59 8 1 . 6 Peak Tracking Total 7 | . 4 2 2 7 5 4 1 . 3 Tactical Retreats 14 | . . . . 9 5 . . . . Traps | -11 -10 -10 -10 -8 -7 -7 -7 -7 -7 ------- Run | Yrd Mat Min Sub Mat Fac Low Low Zio Dee Traps Triggered 9 | . 2 . . 4 3 . . . . Indirectly . | . . . . . . . . . . Trap Hack Attempts . | . . . . . . . . . . Triggered . | . . . . . . . . . . Disarmed . | . . . . . . . . . . Reprogrammed . | . . . . . . . . . . Reused . | . . . . . . . . . . Traps Extracted . | . . . . . . . . . . Installed . | . . . . . . . . . . Triggered . | . . . . . . . . . . Machines | -11 -10 -10 -10 -8 -7 -7 -7 -7 -7 ---------- Run | Yrd Mat Min Sub Mat Fac Low Low Zio Dee Machines Disabled 24 | . 3 . 1 4 15 . . . 1 Max in Single Turn 8 | . 2 . 1 1 8 . . . . Garrison Access 3 | . . . . 1 2 . . . . Machines Repaired . | . . . . . . . . . . Machines Dismantled . | . . . . . . . . . . Machines Sabotaged . | . . . . . . . . . . Overloaded Fab Kills . | . . . . . . . . . . Hacking | -11 -10 -10 -10 -8 -7 -7 -7 -7 -7 --------- Run | Yrd Mat Min Sub Mat Fac Low Low Zio Dee Machines Accessed 37 | . 8 . 2 4 22 . . 1 . Terminals 22 | . 6 . . 3 13 . . . . Fabricators 4 | . . . . . 4 . . . . Repair Stations 2 | . 1 . . . 1 . . . . Recycling Units 2 | . 1 . . . 1 . . . . Scanalyzers 1 | . . . . . 1 . . . . Garrison Access 3 | . . . . 1 2 . . . . Total Hacks 118 | . 28 . 6 12 69 . . 3 . Successful 69 | . 14 . 6 4 42 . . 3 . Failed 49 | . 14 . . 8 27 . . . . Catastrophic 8 | . 1 . . 1 6 . . . . Database Lockouts . | . . . . . . . . . . Manual 73 | . 24 . . 8 37 . . 4 . Terminals 72 | . 23 . . 10 39 . . . . Fabricators 11 | . . . . . 11 . . . . Repair Stations 7 | . 3 . . . 4 . . . . Recycling Units 7 | . 2 . . . 5 . . . . Scanalyzers 8 | . . . . . 8 . . . . Garrison Access 4 | . . . . 2 2 . . . . Terminal Hacks 22 | . 2 . 6 1 10 . . 3 . Record 5 | . . . 5 . . . . . . Part Schematic 5 | . . . . . 2 . . 3 . Robot Analysis 2 | . 2 . . . . . . . . Branch Access Points 1 | . . . . 1 . . . . . Terminal Index 1 | . . . . . 1 . . . . Alert Level 2 | . . . . . 2 . . . . Unreport Threat 1 | . . . . . 1 . . . . Locate Traps 1 | . . . . . 1 . . . . Hauler Manifests 1 | . . . . . 1 . . . . Registered Components 2 | . . . . . 2 . . . . Proto ID Catalog 1 | . . . 1 . . . . . . Fabricator Hacks 3 | . . . . . 3 . . . . Network Status 1 | . . . . . 1 . . . . Load Schematic 1 | . . . . . 1 . . . . Build 1 | . . . . . 1 . . . . Repair Station Hacks 4 | . 1 . . . 3 . . . . Scan Component 2 | . . . . . 2 . . . . Repair 1 | . . . . . 1 . . . . Refit 1 | . 1 . . . . . . . . Recycling Unit Hacks 2 | . 1 . . . 1 . . . . Retrieve Components 2 | . 1 . . . 1 . . . . Scanalyzer 6 | . . . . . 6 . . . . Insert Component 1 | . . . . . 1 . . . . Analyze 1 | . . . . . 1 . . . . Retrieve Study 4 | . . . . . 4 . . . . Garrison Access Hacks 3 | . . . . 1 2 . . . . Seal Access 3 | . . . . 1 2 . . . . Unauthorized Hacks 29 | . 10 . . 2 17 . . . . Terminals 21 | . 9 . . 2 10 . . . . Track 1 | . . . . . 1 . . . . Botnet 8 | . 3 . . 2 3 . . . . Operators 2 | . 1 . . . 1 . . . . Skim 10 | . 5 . . . 5 . . . . Fabricators 4 | . . . . . 4 . . . . Prioritize 1 | . . . . . 1 . . . . Liberate 1 | . . . . . 1 . . . . Haulers 2 | . . . . . 2 . . . . Repair Stations . | . . . . . . . . . . Recycling Units 3 | . 1 . . . 2 . . . . Monitor 1 | . . . . . 1 . . . . Recyclers 1 | . . . . . 1 . . . . Tunnel 1 | . 1 . . . . . . . . Scanalyzers 1 | . . . . . 1 . . . . Extract 1 | . . . . . 1 . . . . Garrison Access . | . . . . . . . . . . Data Cores Recovered 1 | . . . . . 1 . . . . Used 1 | . . . . . 1 . . . . Hacking Detections 29 | . 7 . . 2 20 . . . . Full Trace Events 2 | . . . . . 2 . . . . Feedback Events . | . . . . . . . . . . Feedback Blocked . | . . . . . . . . . . Robot Schematics Acquired . | . . . . . . . . . . Robots Built . | . . . . . . . . . . Authchips . | . . . . . . . . . . Time . | . . . . . . . . . . Total Robot Build Rating . | . . . . . . . . . . Part Schematics Acquired 10 | . . . . . 7 . . 3 . Parts Built 2 | . . . . . 2 . . . . Authchips . | . . . . . . . . . . Time 95 | . . . . . 95 . . . . Total Part Build Rating 10 | . . . . . 10 . . . . Part Studies Acquired 4 | . . . . . 4 . . . . Parts Repaired 1 | . . . . . 1 . . . . Time 44 | . . . . . 44 . . . . Parts Recycled . | . . . . . . . . . . Recycled Matter . | . . . . . . . . . . Retrieved Matter . | . . . . . . . . . . Retrieved Components 3 | . 1 . . . 2 . . . . Parts Scanalyzed 1 | . . . . . 1 . . . . Part Schematics Acquired 1 | . . . . . 1 . . . . Parts Damaged . | . . . . . . . . . . Bothacking | -11 -10 -10 -10 -8 -7 -7 -7 -7 -7 ------------ Run | Yrd Mat Min Sub Mat Fac Low Low Zio Dee Used RIF Installer . | . . . . . . . . . . Robots Hacked . | . . . . . . . . . . Non-combat . | . . . . . . . . . . Combat . | . . . . . . . . . . Robot Hacks Applied . | . . . . . . . . . . Relay Couplers Released . | . . . . . . . . . . Fabnet Peak Effective % . | . . . . . . . . . . Robots Rewired . | . . . . . . . . . . Allies Hacked . | . . . . . . . . . . Hacks Repelled . | . . . . . . . . . . Allies | -11 -10 -10 -10 -8 -7 -7 -7 -7 -7 -------- Run | Yrd Mat Min Sub Mat Fac Low Low Zio Dee Total Allies 8 | . . 3 . . . . . 5 . Largest Group 5 | . . 3 1 . . . . 5 5 Highest-Rated Group 104 | . . 40 16 . . . . 104 104 Highest-Rated Ally 25 | . . 16 16 . . . . 25 25 Total Orders . | . . . . . . . . . . Ally Attacks 77 | . . 28 1 . . . . . 48 Total Damage 759 | . . 224 18 . . . . . 517 Kills 9 | . . 3 . . . . . . 6 Allies Corrupted 1 | . . 1 . . . . . . . Allies Melted . | . . . . . . . . . . Intel | -11 -10 -10 -10 -8 -7 -7 -7 -7 -7 ------- Run | Yrd Mat Min Sub Mat Fac Low Low Zio Dee Active Infowar (turns) 5665 | 20 971 802 72 679 1702 425 410 490 94 Sensors 3784 | . . . . 663 1702 425 410 490 94 Seismic 1882 | 20 971 802 72 17 . . . . . ECM 1 | . . . . . 1 . . . . Robot Analysis Total 2 | . 2 . . . . . . . . Derelict Logs Recovered 4 | . . 2 . . . . 1 1 . Drone Launches . | . . . . . . . . . . Drone Recoveries . | . . . . . . . . . . Exploration | -11 -10 -10 -10 -8 -7 -7 -7 -7 -7 ------------- Run | Yrd Mat Min Sub Mat Fac Low Low Zio Dee Turns Passed 7939 | 51 1001 802 1387 1055 2198 425 410 490 120 Spaces Moved 8081 | 35 726 568 1048 501 2700 801 747 841 114 Core 1 | 1 . . . . . . . . . Treads . | . . . . . . . . . . Legs . | . . . . . . . . . . Wheels 2859 | 34 726 568 1048 483 . . . . . Hover 5221 | . . . . 18 2700 801 747 841 114 Flight . | . . . . . . . . . . Fastest Speed 36 | 50 90 100 95 52 36 49 49 49 49 Average Speed 67 | 88 98 101 112 105 44 49 49 49 50 Slowest Speed 150 | 90 100 105 150 130 110 49 49 49 121 Overloaded Moves . | . . . . . . . . . . Propulsion Burnouts . | . . . . . . . . . . Robots Hopped . | . . . . . . . . . . Potential Cave-ins . | . . . . . . . . . . Cave-ins Triggered . | . . . . . . . . . . Exploration Rate (%) 61 | 4 97 95 52 36 56 93 80 83 20 Regions Visited 9 Branch Regions 6 Pre-discovered Areas 5 | . 1 2 1 . 1 . . . . Known Exits Taken 5 | . . . . 1 1 1 1 1 . Unknown Exits Taken 4 | 1 1 1 1 . . . . . . Scrap Searched 10 | . . . 4 . . 1 1 4 . Spaces Dug 32 | . 7 . . . 8 17 . . . Terrain Destroyed 325 | . 51 . 26 88 66 80 . . 14 Melee 8 | . . . . . 8 . . . . Projectile 15 | . . . 1 12 . . . . 2 AOE 302 | . 51 . 25 76 58 80 . . 12 Terrain Rammed . | . . . . . . . . . . Walls Destroyed . | . . . . . . . . . . Machines Disabled . | . . . . . . . . . . Actions | -11 -10 -10 -10 -8 -7 -7 -7 -7 -7 --------- Run | Yrd Mat Min Sub Mat Fac Low Low Zio Dee Total 9845 | 46 921 777 1214 823 3394 820 784 918 148 Wait 947 | . 99 199 70 111 358 5 35 58 12 Move 8072 | 34 725 567 1047 500 2699 800 746 840 114 Hop . | . . . . . . . . . . Pick Up 94 | 1 17 1 18 17 35 1 . 4 . Fast Attach 79 | 7 6 1 7 25 29 . . 3 1 Attach 38 | . 4 . 3 10 17 1 . 1 2 Detach 9 | . 2 . . 3 3 . . . 1 Swap 81 | . 9 . 7 11 41 4 . 4 5 Drop 107 | . 11 1 19 17 51 . . 8 . Fire 319 | 4 48 8 28 97 112 9 . . 13 Melee 91 | . . . 8 31 49 . 3 . . Ram . | . . . . . . . . . . Kick . | . . . . . . . . . . Crush . | . . . . . . . . . . Escape Stasis . | . . . . . . . . . . Rewire . | . . . . . . . . . . Trap . | . . . . . . . . . . Miscellaneous 8 | . . . 7 1 . . . . . Route ------- -11/Scrapyard -10/Materials (discovered 5 exits: [*Mat x3] / [*Min] / *Sub) -10/Mines (discovered 3 exits: [*Mat x2] / *Sub) -10/Subcaves -8/Materials (discovered 2 exits: *Fac x2) -7/Factory (discovered 5 exits: *Fac / *Sto x2 / *Low x2) -7/Lower Caves (discovered 2 exits: *Low / *Zio) -7/Lower Caves (discovered 2 exits: *Fac / *Zio) -7/Zion (discovered 2 exits: *Dee / *Pro) -7/Deep Caves History --------- Turn | Location | Event 12 | -11/Scrapyard | Discovered new exit (range 15) 52 | -11/Scrapyard | Entered Materials 267 | -10/Materials | Discovered new exit (range 11) 302 | -10/Materials | Build established: Mutant 320 | -10/Materials | Discovered new exit (range 16) 486 | -10/Materials | Discovered new exit (range 13) 811 | -10/Materials | Discovered new exit (range 16) 943 | -10/Materials | Discovered new exit (range 6) 1053 | -10/Materials | Entered Mines 1060 | -10/Mines | Discovered new exit (range 4) 1062 | -10/Mines | Learned location of Storage (-7) 1073 | -10/Mines | Met a Derelict bent on vengeance 1104 | -10/Mines | Learned 2 Materials zone layouts 1218 | -10/Mines | Learned location of Mines (-9) 1311 | -10/Mines | Assisted by bots powering up and referring to "LRC-V3" 1393 | -10/Mines | Discovered new exit (range 15) 1527 | -10/Mines | Core integrity fell below 50% 1543 | -10/Mines | Assembled infested the area 1548 | -10/Mines | Assisted by a Guerilla fighting off Assembled 1693 | -10/Mines | Discovered new exit (range 9) 1855 | -10/Mines | Entered Subcaves 1855 | -10/Subcaves | Accompanied by 1 ally 1897 | -10/Subcaves | Discovered new exit (range 10) 1953 | -10/Subcaves | Ambushed by Subdweller buried in earth 1969 | -10/Subcaves | Lost 4 parts (1n1u2w) 2423 | -10/Subcaves | Build established: Subdweller-Mutant 2683 | -10/Subcaves | Visited Clippyterm 2686 | -10/Subcaves | Learned Research machine intel 2686 | -10/Subcaves | Learned location of Section 7 (-2) 2944 | -10/Subcaves | Visited 4L-MR0's lab 2956 | -10/Subcaves | Found Rainbow Chip 3242 | -10/Subcaves | Entered Materials 3242 | -8/Materials | Evolved 4 slots: Propulsion x1, Utility x3 3243 | -8/Materials | Identified exit to Factory 3397 | -8/Materials | Garrison activated, responded to threat 3513 | -8/Materials | Build established: Mutant 3798 | -8/Materials | Garrison activated, responded to threat 3948 | -8/Materials | Build established: Scavenger-Mutant 4021 | -8/Materials | Lost 3 parts (3n) 4042 | -8/Materials | First assault squad dispatched 4165 | -8/Materials | Core integrity fell below 50% 4228 | -8/Materials | Discovered exit to Factory (range 9) 4255 | -8/Materials | Core integrity fell below 20% 4288 | -8/Materials | Lost 8 parts (1p3n1u3w) 4297 | -8/Materials | Entered Factory 4297 | -7/Factory | Evolved 2 slots: Propulsion x2 4448 | -7/Factory | Discovered new exit (range 11) 4456 | -7/Factory | Identified exit to Factory 4465 | -7/Factory | Discovered new exit (range 13) 4544 | -7/Factory | Identified exit to Storage 4555 | -7/Factory | Build established: Mutant 4671 | -7/Factory | Allied Derelicts emerged from ambush trap array 4815 | -7/Factory | Fabricated Cmb. Airjet (x2) 4856 | -7/Factory | Lost 3 parts (1p1n1u) 4878 | -7/Factory | Garrison activated, responded to threat 5443 | -7/Factory | Discovered exit to Storage (range 8) 5461 | -7/Factory | Garrison activated, responded to threat 5557 | -7/Factory | Repaired Gatling Laser 5711 | -7/Factory | Discovered new exit (range 15) 5721 | -7/Factory | Identified exit to Lower Caves 5763 | -7/Factory | Core integrity fell below 50% 5765 | -7/Factory | Found Corrupted Prototype Launcher 5765 | -7/Factory | Identified Rocket Array 5766 | -7/Factory | System corruption reached 10% 5768 | -7/Factory | Found Rocket Array 5770 | -7/Factory | Learned location of 2 exits from Lower Caves 5846 | -7/Factory | Learned 2 Extension zone layouts 5852 | -7/Factory | Learned 2 Hub_04(d) zone layouts 5853 | -7/Factory | Learned Hub_04(d) terminal intel 5855 | -7/Factory | Learned location of Zion (-7) 5857 | -7/Factory | Learned location of 1 exit from Proximity Caves 5897 | -7/Factory | First assault squad dispatched 6495 | -7/Factory | Entered Lower Caves 6496 | -7/Lower Caves | A Derelict revealed a hidden shortcut to a safe place 6496 | -7/Lower Caves | Identified exit to Lower Caves 6500 | -7/Lower Caves | Identified exit to Zion 6920 | -7/Lower Caves | Entered another Lower Caves area 7206 | -7/Lower Caves | Learned Factory security intel 7330 | -7/Lower Caves | Entered Zion 7349 | -7/Zion | System corruption cleaned by Quarantine Array 7361 | -7/Zion | Given the Hacking Drone Bay 7363 | -7/Zion | Found Prototype Device 7364 | -7/Zion | Identified Hacking Drone Bay 7383 | -7/Zion | Identified exit to Proximity Caves 7403 | -7/Zion | Received a hallucinogenic algorithm 7447 | -7/Zion | Acquired unknown access codes intercepted by a Zionite 7457 | -7/Zion | Gained Derelict followers 7687 | -7/Zion | Found CR-A16's Pointy Stick 7758 | -7/Zion | Opened final containment barrier to the Deep Caves 7766 | -7/Zion | Discovered new exit (range 3) 7766 | -7/Zion | Saw the warning signs outside the Deep Caves entrance 7767 | -7/Zion | Identified exit to Deep Caves 7820 | -7/Zion | Entered Deep Caves 7820 | -7/Deep Caves | Accompanied by 5 allies 7894 | -7/Deep Caves | Attacked by Z-Imprinter 7924 | -7/Deep Caves | Core integrity fell below 20% 7940 | -7/Deep Caves | Destroyed by Z-Imprinter with Zionite Laser-M Last Messages --------------- 07912_ LW-CRK(z) knocked back. 07913_ Hrd. Light Armor Plating destroyed. 07914_ Imp. Sensor Array destroyed. 07915_ LW-CRK(z) knocked back. 07917_ Overheating: System interference. 07917_ Mni. Assault Cannon temporarily disabled. 07920_ Acquired Ripper. 07920_ RT-5EW(l) destroyed. 07921_ Cmb. Airjet destroyed. 07923_ Gravmag System+ destroyed. 07925_ Destroyed Prototype Protection. 07925_ Destroyed Phase Shifter. 07925_ LW-CRK(z) destroyed. 07925_ QO-B9D(z) destroyed. 07926_ Imp. Airjet destroyed. 07928_ The unstable cave ceiling collapses. 07930_ Cmb. Airjet destroyed. 07933_ Hvy. Deuterium Engine destroyed. 07937_ Z-Imprinter knocked back. Map ----- +----------------------------------------------------+ | | | | | | | | | | | | | | | | | ?????????????????????????????????????????????? | | ?????????????????????????????????#####???????? | | ????????????????????????????##### ???????? | | ???????????????????????????# ????????? | | ?????######???????????????# ??????????? | | ???### ##????????????## #???????????? | | #### #???????????## #????????????? | | #??????###### #????????????? | | #??????#; #????????????? | | #???????# #????????????? | | #???????## #????????????? | | ##??????### ###????????????? | | ########;;; ###??????????????? | | ##??#?????????????? | | ### ###???????????? | | # ##??????????? | | ######;% #??????????? | | ###????#; s@ =! " #?#######??? | | ##?????##; * %"" ### ##?? | | #?????#;; I %% #?? | | #?????## #?? | | #?????# ##? | | #?????## ## % #? | | #??????# # # % #? | | ##?????#; #### ##? | | #?????#; ??## #?? | | ?????## #??# #?? | | #?????# #??# #?? | | ##?????## #??# # #?? | | ##??????#;# #??# ## #?? | | ????????#### #??# ### ##?? | | ?????????????## ##??# #??# #??? | | ?????????????????????# ##???# #??? #??? | | ?????????????????????# ##????# #??? #??? | | ????????????????????? #??????# #??? #??? | | ?????????????????????? ???????# ##?? #??? | | ???????????????????????? ???????# #?? #??? | | ?????????????????????????????????# #??? #??? | | ?????????????????????????????????# ##???????? | | ?????????????????????????????????####????????? | | ?????????????????????????????????????????????? | | ?????????????????????????????????????????????? | +----------------------------------------------------+ Best States ------------- Heat Dissipation 61 Energy Generation 18 Energy Capacity 390 Matter Stores 300 Matter Capacity 300 Sight Range 16 Robot Scan Range 15 Terrain Scan Density 10 Armor Coverage 800 Resistance: EM 15 Evasion (%) 57 Targeting Accuracy 6 Offensive Hacking 10 Item Schematics ----------------- Multitool | -7/Factory | Scanalyzed Gauss Rifle | -7/Factory | Extracted Insulated Plating | -7/Factory | Extracted Lgt. Nuclear Core | -7/Factory | Extracted Cld. Airjet | -7/Factory | Extracted Hacking Suite | -7/Factory | Hacked Hvy. Shock Bomb Launcher | -7/Factory | Hacked Flamer | -7/Zion | Free Hvy. Riot Gun | -7/Zion | Free Enh. Flamer | -7/Zion | Free Robot Schematics ------------------ None Fabricated ------------ Cmb. Airjet | x2 | -7/Factory | Preloaded Repaired ---------- Gatling Laser | 37% | -7/Factory Studied --------- Airjet | -7/Factory | Hacked Lgt. Deuterium Engine | -7/Factory | Hacked Gravmag System | -7/Factory | Hacked Mni. Grenade Launcher | -7/Factory | Hacked Alien Tech Used ----------------- None Achievements -------------- None Challenges ------------ None Game ------ Seed SegregatorCannonChainsaw Manual? 0 Play Time 01:28:45 Cumulative 518.1 hours Start 2026.02.03 @ 20:38:46 End 2026.02.03 @ 23:48:44 Sessions 3 Manual Loads 0 Difficulty Rogue Special Mode None Game No. 176 Rogue 176 Adventurer 0 Explorer 0 Win Type - Total 17 Types 8/0/5/1/0/0/0/1/0/2 Lore% 90 Gallery% 86 Achievement% 74 Wizard Run 0 Options --------- Layout 1 ASCII 0 Keyboard 0 Movement Mouse Keybinds 0 Fullscreen 2 Font 32/SmallcapsGlow Map View 50x35 Zoom Use 0% Tactical HUD 1 Map Filters NONE Filters NONE Steam 1 RUN: 0f55e394-c709-4f17-b135-b4e86071661e